bitfinex/quotes_ETHUSD_20250114
["timestamp","ask_amount","ask_price","bid_price","bid_amount"]
[1736883164989,0.7597,3227.9,3227.1,3.0987]
[1736883166762,0.7597,3227.9,3227.2,3.09864]
[1736883167161,0.7597,3227.9,3226.9,3.73841674]
[1736883167421,0.7597,3227.9,3227.4,3.09842]
[1736883167923,0.7597,3227.9,3227.5,3.09835]
[1736883168279,0.7597,3227.9,3227.3,3.09851]
[1736883170439,0.7597,3227.9,3226.9,3.24736607]
[1736883170724,3.0983,3227.6,3226.9,3.24736607]
[1736883170884,1.20138,3227.5,3226.9,3.24736607]
[1736883171084,1.20138,3227.5,3226.6,6.9955811]
[1736883171085,1.20138,3227.5,3226.6,6.34655607]
[1736883171281,1.20138,3227.5,3226.6,3.24736607]
[1736883171501,0.7605,3227.5,3226.4,3.24736607]
[1736883171695,0.7605,3227.5,3226.7,6.01981408]
[1736883172327,0.7605,3227.5,3227.0,3.09879]
[1736883172626,0.7605,3227.5,3227.1,3.09866]
[1736883173644,0.7605,3227.5,3226.7,9.26718015]
[1736883173645,0.7605,3227.5,3226.7,6.16812015]
[1736883173931,0.7605,3227.5,3226.8,6.34632607]
[1736883174114,0.7605,3227.5,3226.8,3.09896]
[1736883174525,0.7605,3227.5,3226.9,3.09887]
[1736883174743,0.7605,3227.5,3226.9,3.09891]
[1736883175026,0.7605,3227.5,3227.1,3.09874]
[1736883175387,0.7605,3227.5,3227.3,3.09849]
[1736883175682,0.7605,3227.9,3227.4,3.09846]
[1736883175882,0.7605,3227.9,3227.6,2.92075408]
[1736883176101,0.7605,3228.5,3227.7,3.0981]
[1736883176303,1.36855,3228.5,3227.7,3.0981]
[1736883177284,1.36855,3228.5,3227.6,2.92075408]
[1736883177687,0.7605,3228.4,3227.5,3.0983]
[1736883177931,0.7605,3228.3,3227.2,3.24736607]
[1736883178132,0.7605,3228.1,3227.2,3.24736607]
[1736883178286,0.7605,3228.1,3227.3,0.86273661]
[1736883179427,0.7605,3228.1,3227.2,3.09864]
[1736883180596,0.79922762,3228.1,3227.2,3.09864]
[1736883180795,0.7605,3227.9,3227.0,6.80363408]
[1736883181311,0.7961,3227.8,3226.9,0.60196641]
[1736883181510,3.0981,3227.8,3226.8,3.09899]
[1736883181706,3.0981,3227.8,3226.6,3.24736607]
[1736883181707,0.2227324,3227.7,3226.6,3.24736607]
[1736883181922,3.09866,3227.2,3226.6,3.24736607]
[1736883182134,0.7961,3227.1,3226.6,3.24736607]
[1736883182592,0.7961,3227.1,3226.3,3.09951]
[1736883182792,0.7961,3227.1,3226.3,3.70153641]
[1736883183048,0.7961,3227.1,3226.4,3.09942]
[1736883183195,0.7961,3227.1,3226.7,6.01988408]
[1736883184440,0.7961,3227.3,3226.7,2.92075408]
[1736883184599,0.7961,3227.3,3226.9,3.09892]
[1736883186378,0.7961,3227.3,3227.2,3.09866]
[1736883186683,0.7961,3227.7,3227.0,2.92075408]
[1736883187404,0.7961,3227.7,3227.2,3.09856]
[1736883187616,0.7961,3227.7,3227.0,6.01951408]
[1736883187894,0.7961,3227.7,3227.1,3.09873]
[1736883188096,0.7961,3227.7,3227.2,3.09866]
[1736883188313,0.7961,3227.7,3227.1,0.60194841]
[1736883188601,0.7961,3228.1,3227.6,2.92075408]
[1736883188811,0.7961,3228.1,3227.8,3.09807]
[1736883189121,0.7961,3228.1,3227.6,6.01900408]
[1736883189281,0.7961,3228.1,3227.7,3.09814]
[1736883190159,0.7961,3228.4,3227.7,0.02995124]
[1736883190391,0.7961,3228.4,3227.9,3.09797]
[1736883190596,0.7961,3228.4,3227.7,3.09813]
[1736883191156,0.7961,3228.4,3227.8,3.09808]
[1736883191361,0.7961,3228.4,3227.7,3.09818]
[1736883191562,0.7961,3228.4,3227.9,2.92075408]
[1736883191872,0.7961,3228.4,3228.1,3.09773]
[1736883192387,0.185,3228.9,3228.2,3.09766]
[1736883193100,0.7961,3229.1,3228.2,3.09766]
[1736883193301,0.79661,3229.0,3228.0,3.09787]
[1736883195501,3.89355,3229.0,3228.0,3.09787]
[1736883195803,0.7961,3228.9,3228.0,3.09787]
[1736883198316,0.7961,3228.9,3227.9,2.92075408]
[1736883198317,0.7961,3228.9,3228.2,3.09769]
[1736883198608,0.7961,3228.9,3228.4,3.09749]
[1736883198764,0.7961,3228.9,3228.2,2.92075408]
[1736883198969,0.7961,3228.9,3228.3,0.29207541]
[1736883199373,0.7961,3228.9,3228.2,6.01840408]
[1736883199712,0.7961,3228.9,3227.9,2.92075408]
[1736883200020,0.7961,3228.9,3228.0,3.09787]
[1736883200196,0.7961,3228.9,3228.1,3.09776]
[1736883200512,0.7961,3228.9,3228.4,3.0975]
[1736883200867,0.7961,3228.9,3228.2,2.92075408]
[1736883201076,0.7961,3228.9,3228.4,3.09748]
[1736883201612,6.2933,3229.2,3228.4,3.09748]
[1736883201761,0.7883,3229.2,3228.5,2.92075408]
[1736883201964,0.7883,3229.2,3228.7,3.09715]
[1736883203015,0.9733,3229.5,3228.7,3.09715]
[1736883203513,1.912259,3229.5,3228.5,2.92075408]
[1736883203665,3.09675,3229.2,3228.3,3.09757]
[1736883204777,3.09675,3229.2,3228.2,6.67555408]
[1736883204778,3.88515,3229.1,3228.2,5.92075408]
[1736883206816,3.88515,3229.1,3228.2,9.01843408]
[1736883207023,0.7883,3229.1,3228.4,3.09748]
[1736883207187,0.7883,3229.1,3228.8,2.92075408]
[1736883207378,6.1237,3229.3,3228.8,6.01779408]
[1736883209443,6.1237,3229.3,3228.8,2.92075408]
[1736883211040,0.8037,3229.6,3229.1,2.92075408]
[1736883211254,6.1237,3230.4,3229.7,3.09619]
[1736883211406,0.8037,3230.4,3229.8,2.95065854]
[1736883211604,0.8037,3230.4,3229.8,2.92075408]
[1736883211843,0.8037,3230.4,3229.9,0.02989495]
[1736883212021,0.8037,3230.4,3229.8,6.01684408]
[1736883212304,0.8037,3230.4,3229.8,2.92075408]
[1736883213146,0.8037,3230.4,3229.7,3.09625]
[1736883215610,0.8037,3230.4,3229.7,3.77437041]
[1736883217985,3.89934,3230.4,3229.5,2.92075408]
[1736883218183,0.8037,3230.4,3229.7,3.09624]
[1736883218345,0.8037,3230.4,3229.5,2.92075408]
[1736883218551,0.8037,3230.4,3229.8,6.01690408]
[1736883219744,0.8037,3230.4,3229.9,3.1259287]
[1736883219945,0.8037,3230.4,3229.9,3.70069828]
[1736883221248,0.8037,3230.4,3229.9,0.60466828]
[1736883222692,0.8037,3230.4,3229.9,3.70070828]
[1736883222890,0.8037,3230.8,3230.1,2.92075408]
[1736883223093,0.8037,3230.8,3230.2,0.02988914]
[1736883223292,0.8037,3230.8,3230.2,3.4207232]
[1736883223592,0.8037,3230.8,3230.2,3.39083432]
[1736883224231,0.8037,3230.8,3230.3,3.09565]
[1736883224415,6.1237,3231.0,3230.4,2.950641]
[1736883224615,0.8037,3231.0,3230.7,2.92075408]
[1736883226025,0.8037,3231.0,3230.5,0.2950641]
[1736883227928,0.8037,3231.0,3230.4,2.92075408]
[1736883228204,0.8037,3231.0,3230.2,3.09575]
[1736883230734,0.8037,3231.0,3230.1,2.92075408]
[1736883230913,0.8037,3231.0,3230.0,3.09595]
[1736883231117,0.7561,3230.9,3230.0,3.09595]
[1736883231463,0.7561,3230.9,3230.1,0.309595]
[1736883232986,0.7561,3230.9,3230.0,3.09595]
[1736883233143,0.7561,3230.7,3229.7,3.09624]
[1736883233492,0.7561,3230.5,3229.5,3.09641]
[1736883233686,3.85161,3230.5,3229.5,3.09641]
[1736883233850,3.85161,3230.5,3229.6,0.309641]
[1736883233851,0.7561,3230.4,3229.6,0.309641]
[1736883234188,0.0386981,3230.4,3229.1,3.09674]
[1736883234375,5.32,3230.5,3228.9,6.01775408]
[1736883234376,0.7561,3229.9,3228.9,6.01775408]
[1736883234574,0.7561,3229.9,3229.3,3.09664]
[1736883235786,0.7561,3229.9,3229.3,3.09655]
[1736883237008,0.7561,3229.9,3228.8,5.38]
[1736883237009,0.7561,3229.9,3229.5,3.09638]
[1736883237327,0.7561,3230.8,3229.8,2.92075408]
[1736883237478,0.185,3230.7,3230.0,3.09595]
[1736883238107,0.9411,3230.8,3230.0,3.09595]
[1736883238463,0.9411,3230.8,3230.0,3.09597]
[1736883239218,0.7561,3230.8,3230.5,3.09547]
[1736883239711,0.7561,3230.8,3230.4,2.92075408]
[1736883239916,0.7561,3230.8,3230.4,6.61796249]
[1736883241981,0.7561,3230.8,3230.4,3.69720841]
[1736883243107,0.185,3231.3,3230.4,0.60163841]
[1736883243418,0.8309,3231.2,3230.5,3.09547]
[1736883244608,0.8309,3231.2,3230.4,3.73225408]
[1736883245709,0.8309,3231.2,3230.6,3.0953]
[1736883246174,0.8309,3231.2,3230.5,3.09549]
[1736883248077,0.03868608,3231.1,3230.1,2.92075408]
[1736883248276,0.8309,3231.1,3230.2,0.37322541]
[1736883248623,0.8309,3231.1,3230.2,3.46896541]
[1736883249416,0.8309,3231.1,3230.2,3.09574]
[1736883249921,0.8309,3231.1,3230.3,3.09567]
[1736883250224,0.8309,3231.8,3231.0,6.01575408]
[1736883250439,0.8309,3231.8,3230.6,3.09537]
[1736883250440,0.8309,3231.8,3231.1,0.02986914]
[1736883250643,0.8309,3231.8,3230.7,2.92075408]
[1736883250838,0.8309,3231.8,3230.8,0.68276241]
[1736883251339,0.8309,3231.8,3230.9,3.0951]
[1736883251567,0.03868256,3231.7,3230.8,0.68276241]
[1736883251709,0.184,3231.9,3230.5,3.0]
[1736883251908,0.03868459,3231.8,3230.5,6.09546]
[1736883252093,3.09483,3231.2,3230.3,3.24263867]
[1736883252293,0.8309,3231.0,3230.3,3.0956]
[1736883252852,0.8309,3230.8,3230.2,3.0]
[1736883253001,0.8309,3230.8,3229.9,6.82827408]
[1736883253204,0.8309,3230.8,3230.0,4.54509128]
[1736883253710,0.8309,3230.8,3230.0,1.54509128]
[1736883255348,0.8309,3230.8,3230.0,4.64104128]
[1736883255720,0.8309,3230.8,3230.0,1.54509128]
[1736883256050,0.8309,3230.8,3229.8,11.71672261]
[1736883256205,0.8309,3230.8,3229.9,3.09605]
[1736883256802,0.03869348,3230.7,3229.9,3.09605]
[1736883257041,0.7849,3230.6,3229.9,3.09605]
[1736883257342,0.82359432,3230.6,3229.8,3.24061261]
[1736883257845,0.7849,3230.4,3229.7,3.09621]
[1736883261758,0.7849,3230.4,3229.7,2.92075408]
[1736883261905,0.7849,3230.4,3230.0,3.09589]
[1736883263820,0.7849,3230.4,3229.8,3.24061261]
[1736883264020,0.7849,3230.4,3229.8,6.33672261]
[1736883264219,0.7849,3230.4,3229.9,0.92574767]
[1736883264447,0.7849,3230.4,3229.9,4.02179767]
[1736883265456,0.7849,3230.4,3230.0,3.09593]
[1736883266923,0.7849,3230.4,3229.9,4.16636028]
[1736883267357,0.7849,3230.4,3229.9,3.24061261]
[1736883267507,0.7849,3230.4,3229.8,3.09614]
[1736883267508,0.7849,3230.4,3229.8,6.33675261]
[1736883267707,0.03869566,3230.3,3229.8,3.24061261]
[1736883268023,0.7849,3230.2,3229.7,3.24061261]
[1736883268232,0.7849,3230.2,3229.5,3.0]
[1736883268233,0.7849,3230.2,3229.6,3.09635]
[1736883268458,0.7849,3230.2,3229.6,1.22577167]
[1736883268754,0.7849,3230.2,3229.4,3.24061261]
[1736883268922,0.7849,3230.0,3229.4,3.24061261]
[1736883269126,0.7849,3230.0,3229.3,3.24061261]
[1736883269450,0.7849,3230.0,3229.1,3.24061261]
[1736883269685,0.7849,3229.9,3229.1,3.24061261]
[1736883270250,0.7849,3229.9,3229.0,6.33748261]
[1736883270449,0.7849,3229.9,3229.0,6.97123087]
[1736883270963,0.7849,3229.9,3229.1,3.09683]
[1736883271460,0.9689,3229.9,3229.1,3.09683]
[1736883271651,0.9689,3229.9,3229.0,0.63374826]
[1736883271952,0.9689,3229.9,3229.0,3.73065826]
[1736883272368,0.9689,3229.9,3229.3,3.09655]
[1736883272540,0.7849,3229.9,3229.3,2.92075408]
[1736883272938,0.7849,3229.9,3229.5,3.09644]
[1736883273348,0.7849,3229.9,3229.6,2.92075408]
[1736883273550,0.8078,3230.2,3229.9,3.09603]
[1736883273857,0.8078,3230.2,3229.9,3.405633]
[1736883274559,0.8078,3230.2,3229.9,0.309603]
[1736883276262,0.62542458,3231.1,3229.9,0.309603]
[1736883276263,0.8078,3230.5,3229.9,3.23035708]
[1736883276620,0.8078,3230.5,3230.1,3.09583]
[1736883278426,0.8078,3230.5,3230.0,3.24061261]
[1736883278642,0.8078,3230.5,3230.2,3.09577]
[1736883279572,0.8078,3230.8,3230.2,2.92075408]
[1736883279864,0.8078,3230.8,3230.5,3.09547]
[1736883281467,0.8078,3231.9,3231.0,3.095]
[1736883281678,2.232,3232.1,3230.8,2.92075408]
[1736883281679,0.8078,3231.6,3230.8,2.92075408]
[1736883281870,0.8078,3231.6,3230.8,6.01587408]
[1736883283272,0.8078,3231.6,3230.8,2.92075408]
[1736883283467,0.8078,3231.6,3231.0,3.095]
[1736883284673,0.8078,3231.6,3231.1,3.09491]
[1736883286070,0.8078,3231.6,3230.8,6.77902969]
[1736883286234,0.8078,3231.6,3230.9,3.09506]
[1736883288144,0.8078,3231.6,3230.8,3.53689075]
[1736883288352,0.8078,3231.6,3231.1,3.09485]
[1736883290065,0.8078,3231.6,3230.9,0.67790297]
[1736883290262,0.8078,3231.6,3230.9,3.77295297]
[1736883290594,0.8078,3231.6,3230.9,0.67790297]
[1736883290755,0.8078,3231.6,3230.8,0.61613667]
[1736883291449,0.8078,3231.6,3230.8,3.71133667]
[1736883291645,0.8078,3231.6,3230.5,6.95129302]
[1736883291894,0.8078,3231.6,3231.0,3.095]
[1736883292477,0.8078,3231.6,3231.1,0.02987191]
[1736883292682,0.7735,3231.9,3231.1,3.75005408]
[1736883292882,0.7735,3231.9,3231.3,3.09464]
[1736883293087,0.7735,3231.9,3231.4,6.32476808]
[1736883293868,0.7735,3231.9,3231.4,3.404014]
[1736883294174,0.7735,3231.9,3231.4,3.09455]
[1736883295764,0.7735,3231.9,3231.2,3.09478]
[1736883296299,0.7735,3231.9,3231.1,6.01563408]
[1736883297204,0.7735,3231.9,3230.9,3.09507]
[1736883297370,0.7735,3231.5,3230.6,3.24213894]
[1736883297569,3.09494,3231.1,3230.6,3.24213894]
[1736883297803,3.09494,3231.1,3230.3,3.89056673]
[1736883297804,0.7735,3231.0,3230.3,3.24213894]
[1736883298577,0.7735,3231.0,3230.1,3.09587]
[1736883298578,0.7735,3231.0,3230.1,2.92075408]
[1736883298801,0.7735,3231.0,3230.2,3.09574]
[1736883299004,0.7735,3231.0,3230.6,3.09537]
[1736883299309,0.7735,3231.3,3230.9,3.09511]
[1736883300706,0.7735,3231.3,3230.7,6.32557108]
[1736883301664,0.184,3231.4,3231.1,3.09492]
[1736883301871,0.8179,3231.6,3231.0,2.92075408]
[1736883302114,2.92075408,3232.8,3230.8,0.8299]
[1736883302115,0.8179,3232.3,3231.7,3.09427]
[1736883302315,0.8179,3232.3,3231.8,0.02985185]
[1736883302486,0.8179,3232.3,3231.7,3.09426]
[1736883302870,0.8179,3232.3,3231.5,2.92075408]
[1736883303110,0.8179,3232.3,3231.7,3.09429]
[1736883303316,0.8179,3232.3,3231.8,3.09417]
[1736883303611,0.8179,3232.3,3231.8,3.69566241]
[1736883304012,0.8179,3232.3,3231.8,0.60149241]
[1736883304212,0.8179,3232.3,3231.9,3.09406]
[1736883304920,0.8179,3232.3,3231.6,2.92075408]
[1736883305116,0.184,3232.8,3232.0,3.09405]
[1736883305420,0.184,3232.8,3231.9,6.01483408]
[1736883306239,0.8179,3232.7,3231.9,3.09408]
[1736883306783,1.22741,3232.7,3231.9,3.09408]
[1736883309294,0.8179,3232.7,3231.9,3.09408]
[1736883309640,0.8179,3232.7,3232.0,3.09403]
[1736883309799,0.8179,3232.7,3232.1,0.02984707]
[1736883310139,0.8179,3232.7,3232.2,6.01458408]
[1736883310432,0.8179,3232.7,3232.3,0.02984253]
[1736883310645,0.8179,3232.7,3232.2,2.92075408]
[1736883310849,0.8179,3232.7,3232.3,0.29207541]
[1736883311352,0.183,3233.3,3232.5,6.01430408]
[1736883311550,0.183,3233.3,3232.5,2.92075408]
[1736883311912,0.8259,3233.2,3232.3,0.29207541]
[1736883312114,0.8259,3233.0,3231.9,3.09411]
[1736883312424,3.91901,3233.0,3232.0,0.309411]
[1736883312739,0.8259,3233.0,3232.0,6.32420508]
[1736883313129,3.91901,3233.0,3232.0,6.32420508]
[1736883315021,0.8259,3232.9,3232.0,3.23016508]
[1736883315355,0.8259,3232.9,3232.0,6.32419508]
[1736883315553,0.8259,3232.9,3232.1,0.63241951]
[1736883316515,0.8259,3232.9,3232.1,3.72634951]
[1736883317326,0.8259,3232.9,3232.3,2.92075408]
[1736883317663,0.8259,3232.9,3232.3,6.01451408]
[1736883318462,0.8259,3232.9,3232.4,3.09366]
[1736883318770,0.8259,3232.9,3232.5,0.60144141]
[1736883320448,0.8259,3232.9,3232.5,3.09357]
[1736883320767,0.8259,3232.9,3232.4,3.09366]
[1736883322047,0.8259,3232.9,3232.5,3.09356]
[1736883323084,0.7953,3233.4,3232.5,3.09353]
[1736883323892,0.7953,3233.4,3232.3,6.77818408]
[1736883324093,3.499913,3233.3,3232.3,4.07154841]
[1736883324394,0.7953,3233.2,3232.4,3.09365]
[1736883326694,0.8298,3233.0,3232.3,0.97781841]
[1736883327200,0.8298,3233.0,3232.2,3.09383]
[1736883328004,0.8298,3233.0,3232.3,3.09376]
[1736883330016,3.9229,3233.0,3232.0,2.92075408]
[1736883330217,3.0932,3232.9,3231.9,3.09407]
[1736883330514,3.09304,3233.1,3232.0,3.09405]
[1736883330679,0.8298,3233.0,3232.1,0.309405]
[1736883332172,0.8298,3233.0,3232.3,2.92075408]
[1736883332377,0.0822328,3232.9,3232.3,2.92075408]
[1736883332905,0.0822328,3232.9,3232.5,3.0935]
[1736883333289,0.8298,3233.0,3232.5,3.0935]
[1736883333500,0.8298,3233.0,3232.6,0.38591]
[1736883333818,0.08212807,3232.9,3232.6,0.38591]
[1736883334191,3.09356,3232.6,3231.9,3.24213894]
[1736883334405,0.786,3232.5,3231.9,3.24213894]
[1736883334608,0.86798167,3232.5,3231.9,3.24213894]
[1736883334780,0.86798167,3232.5,3231.8,3.09424]
[1736883335115,0.86798167,3232.5,3231.9,0.309424]
[1736883335890,0.86798167,3232.5,3231.9,3.403554]
[1736883336224,0.86798167,3232.5,3232.1,3.09395]
[1736883337116,0.86798167,3232.5,3231.9,3.403504]
[1736883337312,0.86798167,3232.5,3231.9,0.309424]
[1736883337521,0.786,3232.5,3231.9,0.309424]
[1736883337928,0.08570088,3232.4,3231.9,0.309424]
[1736883338126,0.08570088,3232.4,3232.0,0.3403654]
[1736883338519,0.08570088,3232.4,3232.0,3.4344154]
[1736883339144,0.786,3232.5,3232.0,3.4344154]
[1736883339444,0.08568626,3232.4,3232.0,3.4344154]
[1736883339808,0.786,3232.5,3232.0,0.3403654]
[1736883340007,0.786,3232.5,3232.2,3.09384]
[1736883340239,0.182,3233.1,3232.4,3.09359]
[1736883340502,0.182,3233.1,3232.5,3.09355]
[1736883341156,0.182,3233.1,3232.3,0.309384]
[1736883341350,0.82466425,3233.2,3232.0,3.3403654]
[1736883341556,0.786,3232.9,3232.0,3.3403654]
[1736883342551,0.786,3232.9,3232.0,6.58250434]
[1736883343050,0.786,3232.9,3232.3,3.09376]
[1736883344621,0.786,3232.9,3232.1,3.24213894]
[1736883344829,0.786,3232.9,3232.2,3.75210043]
[1736883345852,0.786,3232.9,3232.2,6.99423937]
[1736883346549,0.786,3232.9,3232.3,3.24213894]
[1736883346732,0.95205796,3232.8,3232.3,3.24213894]
[1736883346934,3.17890164,3232.8,3232.3,3.24213894]
[1736883347245,0.8278,3232.7,3232.2,3.24213894]
[1736883347448,0.08581411,3232.6,3231.9,6.33620894]
[1736883347617,0.08581411,3232.6,3232.0,6.24213894]
[1736883347960,0.8278,3232.7,3232.0,6.24213894]
[1736883348118,0.8278,3232.7,3232.2,3.24213894]
[1736883348319,0.08586118,3232.6,3232.1,3.24213894]
[1736883348639,0.8278,3232.7,3232.2,3.24213894]
[1736883349028,0.08585179,3232.6,3232.2,3.24213894]
[1736883349228,0.08585179,3232.6,3232.2,0.62421389]
[1736883349526,0.8278,3232.7,3232.3,6.33587894]
[1736883349527,0.08567795,3232.5,3232.3,6.33587894]
[1736883349965,0.8278,3232.7,3232.4,3.24213894]
[1736883350351,0.182,3233.2,3232.4,3.24213894]
[1736883350527,0.182,3233.2,3232.5,3.24213894]
[1736883350723,0.91347926,3233.1,3232.5,3.24213894]
[1736883351155,0.91347926,3233.1,3232.5,3.87571983]
[1736883353666,0.8278,3233.0,3232.5,3.24213894]
[1736883353832,0.08569075,3232.9,3232.5,3.24213894]
[1736883354037,0.8278,3232.8,3232.4,3.24213894]
[1736883354362,0.0858595,3232.7,3232.3,3.24213894]
[1736883354762,0.8278,3232.8,3232.0,9.98459673]
[1736883354763,0.8278,3232.8,3232.2,3.24213894]
[1736883355063,0.08299985,3232.7,3232.3,3.56635283]
[1736883355269,0.8278,3232.8,3232.3,3.56635283]
[1736883355560,0.08299985,3232.7,3232.3,0.32421389]
[1736883355954,0.8278,3232.8,3232.3,0.32421389]
[1736883356154,0.0829724,3232.6,3232.2,3.24213894]
[1736883356497,0.8278,3232.8,3232.1,3.24213894]
[1736883356799,0.08290835,3232.7,3232.1,3.24213894]
[1736883358957,0.8278,3232.6,3232.1,3.24213894]
[1736883360052,3.27479,3233.4,3232.3,3.0937]
[1736883360252,0.9107104,3233.3,3232.5,3.09357]
[1736883361210,0.9107104,3233.3,3232.5,6.33570894]
[1736883361563,0.9107104,3233.3,3232.5,3.09357]
[1736883361930,0.9107104,3233.3,3232.5,6.33570894]
[1736883362193,0.9107104,3233.3,3232.6,0.63357089]
[1736883363468,0.9107104,3233.3,3232.7,3.09331]
[1736883363758,0.0829104,3233.3,3233.2,3.09291]
[1736883363964,0.0829104,3233.3,3233.2,6.91612369]
[1736883364163,0.09088824,3234.0,3233.9,3.09224]
[1736883364488,0.09088824,3234.0,3233.9,3.401464]
[1736883368753,0.09088824,3234.0,3233.7,3.09241]
[1736883369061,0.09088824,3234.0,3233.7,2.92075408]
[1736883369262,0.09088824,3234.0,3233.9,3.09224]
[1736883369465,0.09088824,3234.0,3233.9,3.88564]
[1736883370368,0.09088824,3234.0,3233.9,6.91543515]
[1736883370669,0.09088824,3234.0,3233.9,7.86925892]
[1736883371455,0.09088824,3234.0,3233.9,8.41925892]
[1736883372180,0.09088824,3234.0,3233.9,11.66038825]
[1736883372346,0.09088824,3234.0,3233.9,11.11038825]
[1736883373193,0.09088824,3234.0,3233.9,7.86925892]
[1736883373850,0.09088824,3234.0,3233.9,8.48660365]
[1736883374053,0.09088824,3234.0,3233.9,7.86925892]
[1736883377477,0.09088824,3234.0,3233.9,8.41925892]
[1736883377685,8.24e-06,3234.0,3233.9,8.41925892]
[1736883378192,8.24e-06,3234.0,3233.9,7.86925892]
[1736883389323,8.24e-06,3234.0,3233.9,6.09224]
[1736883390841,8.24e-06,3234.0,3233.9,6.86514]
[1736883394940,8.24e-06,3234.0,3233.9,6.09224]
[1736883395851,8.24e-06,3234.0,3233.9,3.09224]
[1736883396155,0.80488654,3234.2,3233.8,3.0]
[1736883396502,0.80488654,3234.2,3233.8,3.09232]
[1736883396946,0.77280811,3234.2,3233.8,3.09232]
[1736883397241,0.182,3235.2,3234.1,3.09197]
[1736883397440,0.182,3235.1,3233.8,6.62229608]
[1736883397615,0.26227038,3235.1,3234.3,3.0918]
[1736883399924,0.8018,3235.0,3234.3,3.0918]
[1736883400150,0.08011405,3234.9,3234.2,3.0]
[1736883400358,0.08011405,3234.9,3234.7,2.92075408]
[1736883400525,0.08011405,3234.9,3234.8,3.09138]
[1736883400719,0.8018,3235.0,3234.8,3.09138]
[1736883401536,0.183,3235.8,3234.8,0.02978313]
[1736883401852,0.183,3235.8,3235.0,6.01189408]
[1736883401853,0.8018,3235.6,3235.0,6.01189408]
[1736883402262,0.08016884,3235.5,3235.0,6.01189408]
[1736883402468,0.08016884,3235.5,3235.0,2.92075408]
[1736883402824,0.08016884,3235.5,3234.8,3.09133]
[1736883403943,0.8018,3235.4,3234.8,3.09133]
[1736883404143,0.08011402,3235.3,3234.8,3.09133]
[1736883404442,0.08011402,3235.3,3234.8,3.75341813]
[1736883405345,0.08011402,3235.3,3234.9,3.09126]
[1736883407946,0.08011402,3235.3,3234.8,0.66208813]
[1736883408287,0.8018,3235.4,3235.0,3.09118]
[1736883408487,0.8018,3235.4,3235.0,3.46650681]
[1736883408665,0.08006912,3235.3,3235.0,3.46650681]
[1736883408988,0.8018,3235.4,3235.0,3.46650681]
[1736883412542,0.8018,3235.4,3235.0,3.09118]
[1736883413156,0.8018,3235.4,3234.9,0.7641]
[1736883413363,0.8018,3235.4,3235.3,3.0909]
[1736883413532,0.9645,3236.1,3235.3,6.01165408]
[1736883413719,0.08101198,3236.0,3235.3,6.01165408]
[1736883414060,0.7815,3236.1,3235.6,6.01131408]
[1736883414238,0.7815,3236.1,3235.6,3.68485408]
[1736883414433,0.7815,3236.1,3235.6,2.92075408]
[1736883414434,0.08101198,3236.0,3235.6,2.92075408]
[1736883414652,0.7815,3236.1,3235.6,2.92075408]
[1736883414848,0.08106574,3235.9,3235.6,2.92075408]
[1736883415165,3.27269,3236.6,3235.6,3.52189449]
[1736883415166,3.08969,3236.6,3235.6,3.52189449]
[1736883415369,0.7815,3236.5,3235.6,3.52189449]
[1736883415567,0.08123014,3236.5,3236.1,3.09005]
[1736883415727,0.7815,3236.4,3236.1,3.09005]
[1736883416126,0.08136301,3236.3,3235.9,6.01103408]
[1736883416341,0.7815,3236.4,3235.9,6.01103408]
[1736883416675,0.7815,3236.4,3235.9,2.92075408]
[1736883416827,0.7815,3236.4,3236.0,3.38228541]
[1736883417027,0.08136301,3236.3,3236.0,3.38228541]
[1736883417272,0.7815,3236.4,3236.0,0.29207541]
[1736883417771,0.7815,3236.4,3235.9,3.09027]
[1736883418851,0.7815,3236.4,3235.9,2.92075408]
[1736883419225,0.08136301,3236.3,3235.9,2.92075408]
[1736883419691,0.7815,3236.4,3235.9,2.92075408]
[1736883419972,0.08136301,3236.3,3235.9,2.92075408]
[1736883420175,0.08136301,3236.3,3236.0,0.36848541]
[1736883420358,0.7815,3236.4,3236.0,3.45871541]
[1736883421070,0.7815,3236.4,3235.7,3.09051]
[1736883421556,0.07864742,3236.3,3235.6,6.09056]
[1736883422284,0.802,3236.2,3235.3,0.60116541]
[1736883422566,0.802,3236.0,3235.1,3.24112933]
[1736883422727,0.985,3235.9,3235.1,3.24112933]
[1736883422926,0.985,3235.9,3234.8,0.66208813]
[1736883422927,0.88089096,3235.8,3234.8,0.66208813]
[1736883423123,0.802,3235.8,3234.8,0.66208813]
[1736883423360,0.802,3235.8,3234.9,6.01195408]
[1736883423579,0.802,3235.8,3235.2,3.09096]
[1736883423736,0.0787996,3235.7,3235.2,3.09096]
[1736883424656,0.0787996,3235.7,3235.0,3.75856422]
[1736883425055,0.802,3235.8,3235.0,3.75856422]
[1736883425451,0.88072437,3235.7,3235.0,3.75856422]
[1736883425658,0.88072437,3235.7,3234.9,2.92075408]
[1736883425837,0.802,3235.7,3234.9,2.92075408]
[1736883426044,0.802,3235.7,3234.8,3.75343813]
[1736883426045,0.03863729,3235.6,3234.6,3.09154]
[1736883426390,0.802,3235.5,3234.6,3.09154]
[1736883426556,0.88073299,3235.5,3234.6,3.09154]
[1736883426884,0.88073299,3235.5,3234.7,3.09139]
[1736883427226,0.88073299,3235.5,3234.8,3.09134]
[1736883427396,0.88073299,3235.5,3235.0,3.0911]
[1736883428250,0.88073299,3235.5,3234.6,3.22990808]
[1736883428452,0.802,3235.5,3234.8,3.09133]
[1736883428690,0.07823758,3235.4,3234.8,3.09133]
[1736883428887,0.07823758,3235.4,3234.6,3.22990808]
[1736883429051,0.07823758,3235.4,3234.9,3.09128]
[1736883429254,0.07823758,3235.4,3234.9,6.01203408]
[1736883429795,0.8329,3235.3,3234.7,3.72362281]
[1736883431321,0.8329,3235.3,3234.9,2.92075408]
[1736883431810,2.92075408,3236.7,3234.4,3.74593142]
[1736883431811,0.8329,3236.9,3235.2,2.92075408]
[1736883432020,0.8329,3236.4,3235.5,2.92075408]
[1736883432521,0.8329,3236.2,3235.4,3.09074]
[1736883432822,0.0782088,3236.1,3235.4,3.09075]
[1736883433519,0.0782088,3236.1,3235.5,3.09069]